bitfinex/quotes_ETHUSD_20251117
["timestamp","ask_amount","ask_price","bid_price","bid_amount"]
[1763355623803,0.002,3192.6,3192.5,0.43737685]
[1763355624408,0.002,3192.6,3192.5,0.61027685]
[1763355626618,0.002,3192.6,3192.5,0.43737685]
[1763355627028,0.4993,3192.6,3192.5,0.43737685]
[1763355627198,0.4993,3192.6,3192.4,3.79536452]
[1763355627395,0.002,3192.6,3192.5,0.578404]
[1763355627596,0.002,3192.6,3192.5,3.15276491]
[1763355627820,0.4993,3192.6,3192.5,3.15276491]
[1763355628786,0.4993,3192.6,3192.4,0.64259961]
[1763355629014,0.4973,3192.5,3192.3,3.15276491]
[1763355629215,0.4973,3192.5,3192.3,3.62196588]
[1763355629417,0.9671,3192.4,3191.7,1.1337408]
[1763355629626,0.9671,3192.4,3192.1,3.15276491]
[1763355631092,0.9671,3192.4,3192.3,3.15276491]
[1763355631289,0.4973,3192.4,3192.3,3.15276491]
[1763355631925,0.4973,3192.4,3192.1,3.15276491]
[1763355632132,0.4718,3192.6,3192.1,3.15276491]
[1763355632432,0.4718,3192.6,3192.3,3.15276491]
[1763355632621,0.4718,3192.6,3192.1,3.15276491]
[1763355632821,0.4718,3192.6,3192.0,3.14754922]
[1763355633394,0.4973,3192.1,3191.3,2.79460873]
[1763355633735,0.4973,3191.8,3191.3,1.1337408]
[1763355634111,0.4698,3191.7,3191.4,0.405504]
[1763355634996,0.1963,3191.8,3191.4,0.405504]
[1763355636036,0.1963,3191.8,3191.6,3.14754922]
[1763355636343,0.002,3192.6,3191.7,0.601029]
[1763355636502,0.4698,3192.5,3191.9,3.32044922]
[1763355637729,0.4698,3192.5,3192.0,0.405504]
[1763355638233,0.4698,3192.5,3191.7,3.57567822]
[1763355639536,0.4698,3192.5,3192.1,3.14754922]
[1763355640332,0.002,3192.6,3192.1,3.14754922]
[1763355640532,0.4718,3192.6,3192.1,3.14754922]
[1763355642101,0.002,3192.6,3192.4,3.14754922]
[1763355642433,0.002,3192.6,3192.5,0.48765492]
[1763355643301,0.002,3192.7,3192.6,0.405504]
[1763355643532,0.002,3192.7,3192.6,0.751304]
[1763355643835,0.005,3192.9,3192.6,0.751304]
[1763355644008,0.005,3192.9,3192.8,4.85969402]
[1763355644212,0.005,3192.9,3192.8,1.5392448]
[1763355644417,0.5023,3192.9,3192.8,4.68679402]
[1763355645061,0.5023,3192.9,3192.8,4.28129002]
[1763355645343,1.1684,3192.9,3192.8,4.28129002]
[1763355645903,0.5023,3192.9,3192.8,4.28129002]
[1763355646099,0.6986,3192.9,3192.8,1.5618698]
[1763355646436,1.1684,3192.9,3192.5,1.1337408]
[1763355646639,0.4973,3192.6,3192.4,0.6114849]
[1763355646843,0.4973,3192.6,3192.5,3.14754922]
[1763355649439,0.9671,3192.6,3192.5,3.14754922]
[1763355649739,0.4973,3192.6,3192.5,3.14754922]
[1763355649955,0.6711,3192.9,3192.5,3.56620348]
[1763355650157,0.6711,3192.9,3192.8,3.14754922]
[1763355650515,1.1684,3192.9,3192.8,3.14754922]
[1763355651855,0.005,3192.9,3192.8,3.32044922]
[1763355652040,0.005,3192.9,3192.8,3.47959414]
[1763355652217,1.1203,3192.9,3192.8,3.47959414]
[1763355652423,1.1203,3192.9,3192.8,3.14754922]
[1763355654323,1.1203,3192.9,3192.1,3.14754922]
[1763355654523,0.4604,3192.2,3192.1,3.14754922]
[1763355655033,0.9297,3192.2,3192.1,3.14754922]
[1763355655237,0.9297,3192.2,3192.1,3.14854922]
[1763355655439,0.9297,3192.2,3192.1,3.46340414]
[1763355655758,0.4604,3192.2,3192.1,3.46340414]
[1763355655969,0.4693,3192.7,3192.1,3.63630414]
[1763355656164,0.4693,3192.7,3192.1,0.48875492]
[1763355656327,0.4693,3192.7,3192.4,3.14754922]
[1763355656530,0.1926,3192.9,3192.6,3.14754922]
[1763355657429,0.18946771,3192.9,3192.6,3.14754922]
[1763355657936,0.00386771,3192.9,3192.8,0.1729]
[1763355660671,0.00386771,3192.9,3192.8,0.751304]
[1763355661434,0.00386771,3192.9,3192.8,0.578404]
[1763355662533,0.64986771,3192.9,3192.7,1.1337408]
[1763355662734,0.64986771,3192.9,3192.4,0.64241385]
[1763355662735,0.4604,3192.8,3192.4,0.64241385]
[1763355662940,0.4604,3192.5,3192.4,3.14754922]
[1763355663245,0.4604,3192.5,3192.4,3.46230414]
[1763355663758,0.4693,3192.8,3192.4,3.46230414]
[1763355664742,0.4693,3192.8,3192.4,0.31475492]
[1763355664959,0.4693,3192.8,3192.1,1.1347408]
[1763355666886,0.18946771,3192.9,3192.1,1.1347408]
[1763355667183,0.18946771,3192.9,3192.1,1.3076408]
[1763355667371,0.4693,3192.8,3192.1,1.1347408]
[1763355668997,0.18946771,3192.9,3192.2,4.27970856]
[1763355669285,0.18946771,3192.9,3192.3,0.44536086]
[1763355669671,0.18946771,3192.9,3192.4,0.405504]
[1763355670052,0.4693,3192.8,3192.4,0.405504]
[1763355671256,0.4604,3192.5,3192.4,0.405504]
[1763355671589,0.4604,3192.5,3192.3,0.44536086]
[1763355671888,0.4604,3192.4,3192.1,0.001]
[1763355673066,0.4604,3192.2,3192.1,0.001]
[1763355674300,0.9297,3192.2,3192.1,0.001]
[1763355674997,0.4693,3192.5,3192.1,0.1739]
[1763355675402,0.4693,3192.8,3192.4,0.1729]
[1763355675599,0.18946771,3192.9,3192.4,0.1729]
[1763355675900,0.4693,3192.8,3192.4,0.44526086]
[1763355676133,0.4693,3192.8,3192.1,0.001]
[1763355676134,0.4604,3192.5,3192.1,0.001]
[1763355676311,0.4604,3192.2,3192.1,0.001]
[1763355676774,0.9297,3192.2,3192.1,0.001]
[1763355679576,0.4831,3192.7,3192.1,0.001]
[1763355679937,0.4831,3192.8,3192.1,0.001]
[1763355680138,0.4606,3192.2,3192.1,0.001]
[1763355680546,0.9437,3192.2,3192.1,0.001]
[1763355685021,0.4606,3192.2,3192.1,0.001]
[1763355685239,0.9445,3192.2,3192.1,0.001]
[1763355690662,0.67336771,3192.9,3192.1,0.1739]
[1763355690829,0.4839,3192.8,3192.1,0.1739]
[1763355691026,0.4983,3192.2,3192.1,0.001]
[1763355691462,0.9822,3192.2,3192.1,0.001]
[1763355692028,0.49176449,3192.5,3192.1,0.1739]
[1763355692338,0.4839,3192.8,3192.1,0.1739]
[1763355692544,0.4839,3192.8,3192.2,0.44574549]
[1763355698848,0.4983,3192.3,3192.1,0.001]
[1763355699147,0.4839,3192.8,3192.1,0.001]
[1763355699346,0.4839,3192.7,3192.1,0.001]
[1763355699544,0.4983,3192.2,3192.1,0.001]
[1763355700370,0.9822,3192.2,3192.1,0.001]
[1763355703073,0.4983,3192.2,3192.1,0.001]
[1763355703641,0.9822,3192.2,3192.1,0.001]
[1763355707176,0.4983,3192.2,3192.1,0.001]
[1763355707378,0.9822,3192.2,3192.1,0.001]
[1763355710621,0.4983,3192.2,3192.1,0.001]
[1763355711764,0.9976,3192.2,3192.1,0.001]
[1763355712214,0.4993,3192.7,3192.1,0.48897924]
[1763355713482,0.4993,3192.7,3192.2,3.14879243]
[1763355714614,0.18946771,3192.9,3192.2,3.14879243]
[1763355714817,0.68876771,3192.9,3192.2,3.14879243]
[1763355715415,0.4993,3192.8,3192.2,3.14879243]
[1763355715616,0.4993,3192.8,3192.3,0.34648717]
[1763355715816,0.4993,3192.8,3192.1,0.001]
[1763355718875,0.00386771,3192.9,3192.7,0.1729]
[1763355719277,0.00386771,3192.9,3192.5,3.14879243]
[1763355719813,0.00386771,3192.9,3192.7,3.14879243]
[1763355719997,0.00386771,3192.9,3192.8,0.31487924]
[1763355720398,1.17676771,3192.9,3192.6,3.14879243]
[1763355720586,0.48136771,3192.9,3192.6,3.14879243]
[1763355721488,0.98066771,3192.9,3192.6,3.14879243]
[1763355721710,1.17676771,3192.9,3192.6,3.14879243]
[1763355721914,0.4775,3192.7,3192.6,3.14879243]
[1763355722216,0.4775,3192.7,3192.6,3.46367167]
[1763355722392,0.4775,3192.7,3192.6,0.31487924]
[1763355722791,0.4775,3192.7,3192.1,1.1347408]
[1763355722792,0.9768,3192.7,3192.1,0.001]
[1763355723010,0.4775,3192.2,3192.1,0.001]
[1763355723712,0.9768,3192.2,3192.1,0.001]
[1763355725512,0.4775,3192.2,3192.1,0.001]
[1763355725710,0.9768,3192.2,3192.1,0.001]
[1763355740668,0.4746,3192.6,3192.1,0.001]
[1763355741771,0.4754,3192.2,3192.1,0.001]
[1763355742471,0.4647,3192.5,3192.1,0.001]
[1763355745353,0.4613,3192.2,3192.1,0.001]
[1763355745880,0.926,3192.2,3192.1,0.001]
[1763355746244,0.4613,3192.2,3192.1,0.001]
[1763355746875,0.4647,3192.4,3192.1,0.1739]
[1763355747063,0.4647,3192.4,3192.1,0.001]
[1763355747372,0.4613,3192.2,3192.1,0.001]
[1763355747694,3.61009243,3192.2,3192.1,0.001]
[1763355747974,4.77619413,3192.2,3192.1,0.001]
[1763355749346,5.90993493,3192.2,3192.1,0.001]
[1763355751856,2.7611425,3192.2,3192.1,0.001]
[1763355752187,2.35366326,3192.2,3192.1,0.001]
[1763355754300,2.84548832,3192.2,3192.1,0.001]
[1763355754499,2.35366326,3192.2,3192.1,0.001]
[1763355755873,2.3534847,3192.2,3192.1,0.001]
[1763355757478,2.8453122,3192.2,3192.1,0.001]
[1763355757678,3.44481985,3192.2,3192.1,0.001]
[1763355761863,2.5515683,3192.2,3192.1,0.001]
[1763355762064,2.84525859,3192.2,3192.1,0.001]
[1763355764191,2.84527066,3192.2,3192.1,0.001]
[1763355764595,0.4918275,3192.2,3192.1,0.001]
[1763355764761,0.19996771,3192.9,3192.1,3.49656433]
[1763355764762,0.1256094,3192.6,3192.1,3.49656433]
[1763355764958,0.1256094,3192.6,3192.4,3.14976433]
[1763355765293,0.1256094,3192.6,3192.5,0.1729]
[1763355765592,0.00386771,3192.9,3192.5,0.1729]
[1763355766093,0.00386771,3192.9,3192.2,0.34975643]
[1763355766094,0.4613,3192.6,3192.2,0.34975643]
[1763355766264,0.4613,3192.5,3192.1,0.001]
[1763355766468,0.4647,3192.7,3192.1,0.001]
[1763355767409,3.61106433,3192.2,3192.1,0.001]
[1763355767783,0.4647,3192.5,3192.1,0.001]
[1763355768375,0.4613,3192.2,3192.1,0.001]
[1763355768788,0.926,3192.2,3192.1,0.001]
[1763355768984,1.13197408,3192.2,3192.1,0.001]
[1763355769872,0.9564933,3192.5,3192.1,0.001]
[1763355770205,0.4647,3192.4,3192.1,0.001]
[1763355771891,0.4815,3192.2,3192.1,0.001]
[1763355772308,0.9628,3192.2,3192.1,0.001]
[1763355775084,0.4917933,3192.5,3192.1,0.1739]
[1763355775285,0.29365832,3192.4,3192.1,0.1739]
[1763355775487,0.4815,3192.2,3192.1,0.001]
[1763355776093,0.4813,3192.4,3192.1,0.001]
[1763355778113,0.4917933,3192.5,3192.1,0.001]
[1763355778412,0.4813,3192.4,3192.1,0.001]
[1763355779587,0.4917933,3192.5,3192.1,0.001]
[1763355779778,0.9730933,3192.5,3192.1,0.001]
[1763355780183,1.18377671,3192.5,3192.1,0.001]
[1763355780379,0.4813,3192.4,3192.1,0.001]
[1763355781119,0.4815,3192.2,3192.1,0.001]
[1763355781624,0.9628,3192.2,3192.1,0.001]
[1763355782500,0.70247671,3192.5,3192.1,0.001]
[1763355782703,0.77501045,3192.4,3192.1,0.001]
[1763355782899,0.4813,3192.4,3192.1,0.001]
[1763355783103,0.4813,3192.3,3192.1,0.001]
[1763355783923,0.4815,3192.2,3192.1,0.001]
[1763355784328,0.9628,3192.2,3192.1,0.001]
[1763355784531,5.54004995,3192.2,3192.1,0.001]
[1763355784696,0.405504,3192.0,3191.8,0.001]
[1763355785022,5.20814995,3191.9,3191.8,0.001]
[1763355785225,5.68944995,3191.9,3191.8,0.001]
[1763355785994,5.81508973,3191.9,3191.8,0.001]
[1763355786909,2.6653254,3191.9,3191.8,0.001]
[1763355787109,2.97240834,3191.9,3191.8,0.001]
[1763355788329,3.46429013,3191.9,3191.8,0.001]
[1763355788926,7.74942038,3191.9,3191.8,0.001]
[1763355790826,0.49188179,3191.9,3191.8,0.1759]
[1763355791327,1.74065848,3192.3,3191.8,0.1759]
[1763355791532,0.29324988,3192.2,3191.8,0.001]
[1763355791729,0.77454988,3192.2,3191.8,0.001]
[1763355792027,0.29324988,3192.1,3191.8,0.001]
[1763355792197,0.4813,3192.2,3191.8,0.001]
[1763355792393,0.60267171,3192.9,3191.8,0.001]
[1763355792394,0.4813,3192.6,3191.8,0.001]
[1763355792599,0.1759,3192.4,3191.8,0.001]
[1763355792828,0.29324024,3192.5,3191.8,0.001]
[1763355793033,0.671,3191.9,3191.8,0.001]
[1763355793431,0.4815,3191.9,3191.8,0.001]
[1763355794134,0.4813,3192.1,3191.8,0.001]
[1763355794633,0.4815,3191.9,3191.8,0.001]
[1763355795138,0.4813,3192.1,3191.8,0.001]
[1763355797050,0.4885,3191.9,3191.8,0.001]
[1763355797444,0.6756,3191.9,3191.8,0.001]
[1763355797652,1.1756,3191.9,3191.8,0.001]
[1763355800057,0.4885,3191.9,3191.8,0.001]
[1763355801756,0.6699,3191.9,3191.8,0.001]
[1763355801929,1.44417388,3191.9,3191.8,0.001]
[1763355802123,1.70196535,3191.9,3191.8,0.001]
[1763355808233,2.19386446,3191.9,3191.8,0.001]
[1763355808439,1.70196535,3191.9,3191.8,0.001]
[1763355808838,4.85312983,3191.9,3191.8,0.001]
[1763355811673,5.34503156,3191.9,3191.8,0.001]
[1763355813661,4.85312983,3191.9,3191.8,0.001]
[1763355814462,0.29357388,3191.9,3191.8,0.001]
[1763355814643,0.29357388,3191.9,3191.8,0.1759]
[1763355814970,1.1357408,3192.0,3191.8,0.3508]
[1763355814971,0.002,3192.0,3191.8,0.3508]
[1763355815135,0.002,3192.0,3191.9,0.1749]
[1763355815348,0.29584094,3192.0,3191.9,0.1749]
[1763355815549,0.2958313,3192.0,3191.9,0.1749]
[1763355816071,3.44546598,3192.0,3191.9,0.1749]
[1763355817966,0.2958313,3192.0,3191.9,0.1749]
[1763355818348,0.787673,3192.0,3191.9,0.1749]
[1763355820901,0.4938417,3192.0,3191.9,0.3498]
[1763355821054,0.002,3192.0,3191.9,3.84957815]
[1763355822388,0.002,3192.0,3191.9,3.85057815]
[1763355822585,0.002,3192.0,3191.9,0.70094347]
[1763355825491,0.002,3192.0,3191.9,0.3508]
[1763355826351,0.002,3192.0,3191.9,0.1759]
[1763355826580,0.002,3192.0,3191.9,0.3508]
[1763355826993,0.002,3192.0,3191.9,3.50043468]
[1763355829457,0.002,3192.0,3191.9,0.3508]
[1763355829659,0.002,3192.0,3191.9,0.70104347]
[1763355832278,0.002,3192.0,3191.9,0.3508]
[1763355833093,0.002,3192.0,3191.9,0.1759]
[1763355833391,0.002,3192.0,3191.9,0.001]
[1763355836194,0.4573,3192.0,3191.9,0.001]
[1763355838310,0.002,3192.0,3191.9,0.001]
[1763355840288,4.10433468,3192.0,3191.9,0.001]
[1763355840614,1.36513347,3192.0,3191.9,0.001]
[1763355840995,0.86773347,3192.0,3191.9,0.001]
[1763355841214,0.41243347,3192.0,3191.9,0.001]
[1763355841537,1.36513347,3192.0,3191.9,0.001]
[1763355843991,0.86773347,3192.0,3191.9,0.001]
[1763355845192,0.41243347,3192.0,3191.9,0.001]
[1763355845399,0.002,3192.0,3191.9,0.1759]
[1763355847528,0.002,3192.0,3191.9,0.001]
[1763355848801,0.002,3192.0,3191.9,0.1759]
[1763355854441,0.002,3192.0,3191.9,0.3508]
[1763355854650,0.002,3192.0,3191.9,0.70104347]
[1763355856145,0.002,3192.0,3191.9,0.52614347]
[1763355856323,0.002,3192.0,3191.9,0.3508]
[1763355858244,0.002,3192.0,3191.9,0.1759]
[1763355862760,0.002,3192.0,3191.9,0.3508]
[1763355865397,0.002,3192.0,3191.9,0.1759]
[1763355865536,0.002,3192.0,3191.9,7.05557336]
[1763355865741,0.002,3192.0,3191.9,8.18931416]
[1763355866587,0.002,3192.0,3191.9,8.80147832]
[1763355871994,0.002,3192.0,3191.9,5.65184364]
[1763355872681,0.002,3192.0,3191.9,8.80147832]
[1763355874787,0.002,3192.0,3191.9,5.64962189]
[1763355877605,0.002,3192.0,3191.9,2.32730896]
[1763355879393,0.002,3192.0,3191.9,2.50220896]
[1763355880620,0.002,3192.0,3191.9,2.32730896]
[1763355885947,0.481,3192.0,3191.9,0.001]
[1763355886115,0.9605,3192.0,3191.9,0.001]
[1763355887829,1.37129129,3192.0,3191.9,0.001]
[1763355889738,1.86313175,3192.0,3191.9,0.001]
[1763355891044,1.45234046,3192.0,3191.9,0.001]
[1763355891438,0.97284046,3192.0,3191.9,0.001]
[1763355891626,0.002,3192.0,3191.9,0.001]
[1763355892429,0.002,3192.0,3191.9,0.1759]
[1763355893933,0.4529,3192.0,3191.9,0.001]
[1763355894148,0.9283,3192.0,3191.9,0.001]
[1763355894341,0.002,3192.0,3191.9,0.001]
[1763355896046,0.002,3192.0,3191.9,0.1759]
[1763355896723,0.002,3192.0,3191.9,0.001]
[1763355897364,0.4529,3192.0,3191.9,0.001]
[1763355897516,0.9283,3192.0,3191.9,0.001]
[1763355900721,0.002,3192.0,3191.9,0.1759]
[1763355902728,0.002,3192.0,3191.9,0.50843129]
[1763355903070,0.002,3192.0,3191.9,0.68333129]
[1763355904964,0.002,3192.0,3191.9,4.23624822]
[1763355905177,0.002,3192.0,3191.9,2.22257609]
[1763355907840,0.002,3192.0,3191.9,5.36998902]
[1763355908038,0.002,3192.0,3191.9,5.49554637]
[1763355908640,0.002,3192.0,3191.9,5.36998902]
[1763355909037,0.002,3192.4,3192.3,4.68665773]
[1763355909276,0.00386771,3192.9,3192.7,0.405504]
[1763355909471,0.002,3193.6,3192.7,0.405504]
[1763355909472,0.002,3193.6,3193.1,0.405504]
[1763355909635,0.002,3193.6,3193.1,3.77121693]
[1763355909840,0.002,3193.6,3193.2,0.747704]
[1763355911190,0.002,3193.6,3193.2,1.21478058]
[1763355911473,0.002,3193.6,3193.2,1.72380387]
[1763355913952,0.002,3193.6,3193.3,0.405504]
[1763355914154,0.002,3193.6,3193.5,4.85775773]
[1763355915455,0.002,3193.6,3193.5,5.02885773]
[1763355916751,0.005,3193.9,3193.6,1.5392448]
[1763355917074,0.005,3193.9,3193.8,3.72401693]
[1763355917442,0.005,3193.9,3193.8,3.89511693]
[1763355917985,0.005,3194.9,3193.9,1.5392448]
[1763355918180,0.005,3194.9,3194.6,3.14741293]
[1763355918650,0.4756,3194.9,3194.6,3.14741293]
[1763355919241,0.005,3194.9,3194.8,3.14741293]
[1763355919443,0.005,3194.9,3194.8,3.31851293]
[1763355919666,0.6758,3194.9,3194.8,3.14741293]
[1763355919974,1.1464,3194.9,3194.7,3.55291693]
[1763355920346,0.6758,3194.9,3194.7,3.55291693]
[1763355920579,0.4815,3194.9,3194.7,3.93968275]
[1763355922682,0.005,3194.9,3194.7,3.93968275]
[1763355924093,0.4785,3194.8,3193.7,0.4815]
[1763355924313,0.4785,3194.5,3193.7,3.14741293]
[1763355924596,0.4785,3194.5,3194.1,0.405504]
[1763355924802,0.4785,3194.5,3194.0,1.1337408]
[1763355924803,0.967,3194.5,3194.0,1.1337408]
[1763355925171,0.4785,3194.1,3194.0,1.1337408]
[1763355925576,0.967,3194.1,3194.0,1.1337408]
[1763355926206,0.005,3194.9,3194.0,1.3048408]
[1763355926207,0.4885,3194.6,3194.0,1.3048408]
[1763355926368,0.4935,3194.9,3194.0,1.3048408]
[1763355926571,0.4785,3194.1,3194.0,1.5392448]
[1763355926796,0.4785,3194.1,3194.0,2.00791057]
[1763355929506,0.967,3194.1,3194.0,2.00791057]
[1763355929722,0.4785,3194.1,3194.0,2.00791057]
[1763355930269,0.4885,3194.4,3194.0,2.00791057]
[1763355930472,0.4885,3194.8,3194.1,3.14741293]
[1763355930683,0.4885,3194.8,3194.3,3.14741293]
[1763355931193,0.4785,3194.4,3194.3,3.14741293]
[1763355932587,0.005,3194.9,3194.3,3.55291693]
[1763355932785,0.005,3194.9,3194.7,3.14741293]
[1763355933294,0.4785,3194.8,3194.7,3.14741293]
[1763355933789,0.967,3194.8,3194.4,3.14741293]
[1763355934191,0.4785,3194.5,3194.4,3.55291693]
[1763355934417,0.4785,3194.5,3194.4,3.93968275]
[1763355934620,0.4885,3194.7,3194.4,3.93968275]
[1763355935390,0.4935,3194.9,3194.4,3.93968275]
[1763355936523,0.4785,3194.5,3194.1,3.14741293]
[1763355936908,0.4785,3194.5,3194.4,3.14311012]
[1763355937419,0.967,3194.5,3194.4,3.14311012]
[1763355937720,0.005,3194.9,3194.4,6.45732024]
[1763355937920,0.005,3194.9,3194.7,3.14311012]
[1763355938121,0.4935,3194.9,3194.7,3.14311012]
[1763355938295,0.4785,3194.8,3194.7,3.14311012]
[1763355938806,0.967,3194.8,3194.7,3.14311012]
[1763355941617,0.967,3194.8,3194.6,3.14311012]
[1763355941818,0.4885,3194.7,3194.6,3.14311012]
[1763355942024,0.967,3194.7,3194.6,3.14311012]
[1763355945218,0.967,3194.7,3194.3,3.14311012]
[1763355945424,0.4785,3194.4,3194.3,3.45742113]
[1763355948333,0.4885,3194.6,3194.3,3.45742113]
[1763355948539,0.4885,3194.6,3194.5,3.14311012]
[1763355949004,0.967,3194.6,3194.5,3.14311012]
[1763355950563,0.4785,3194.6,3194.5,3.14311012]
[1763355950741,0.4785,3194.6,3194.5,3.48885223]
[1763355951039,0.967,3194.6,3194.5,0.34574211]
[1763355951225,0.967,3194.6,3194.4,3.14311012]
[1763355951829,0.4561,3194.5,3194.4,3.14311012]
[1763355953347,0.4885,3194.6,3194.4,3.06816012]
[1763355953940,0.489,3194.8,3194.4,3.06816012]
[1763355954105,0.496,3194.9,3194.6,3.14311012]
[1763355954510,0.4561,3194.7,3194.6,3.14311012]
[1763355954933,0.007,3194.9,3194.6,3.62852113]
[1763355955132,0.007,3194.9,3194.8,3.14311012]
[1763355955643,0.9521,3194.9,3194.1,3.14311012]
[1763355955824,0.4561,3194.7,3194.2,1.1337408]
[1763355956007,0.4561,3194.7,3194.5,3.14311012]
[1763355956228,0.4561,3194.6,3194.5,3.14311012]
[1763355956445,0.489,3194.7,3194.5,3.14311012]
[1763355956642,0.007,3194.9,3194.5,3.14311012]
[1763355956846,0.496,3194.9,3194.1,0.405504]
[1763355957043,0.496,3194.9,3194.4,3.14311012]
[1763355957337,0.496,3194.9,3194.6,3.14311012]
[1763355957338,0.007,3194.9,3194.6,3.14311012]
[1763355957546,0.496,3194.9,3194.6,3.14311012]
[1763355959024,0.007,3194.9,3194.8,3.14311012]
[1763355960435,0.007,3194.9,3194.8,3.31421012]
[1763355960615,0.007,3194.9,3194.8,3.64563113]
[1763355961244,0.007,3194.9,3194.8,4.05113513]
[1763355961445,0.002,3195.6,3194.9,0.405504]
[1763355961671,0.002,3195.6,3195.2,1.1337408]
[1763355961894,0.491,3195.3,3195.0,1.1337408]
[1763355962088,0.6498,3195.1,3194.8,0.94503416]
[1763355962395,0.1937,3195.1,3194.9,0.40881443]
[1763355962554,0.489,3195.0,3194.9,4.68566535]
[1763355962754,0.9451,3195.0,3194.9,0.40881443]
[1763355963557,0.9451,3195.0,3194.9,3.55192455]
[1763355963889,0.9451,3195.0,3194.9,0.40881443]
[1763355964087,0.9451,3195.0,3194.9,3.14311012]
[1763355964466,0.9451,3195.0,3194.6,0.405504]
[1763355964669,0.9451,3195.0,3194.9,3.14311012]
[1763355967025,0.002,3195.3,3194.9,6.45732024]
[1763355967196,0.002,3195.3,3195.2,3.31421012]
[1763355967397,0.002,3195.3,3195.2,3.64563113]
[1763355971721,0.002,3195.3,3195.2,4.05113513]
[1763355972133,0.002,3195.3,3195.2,3.88003513]
[1763355972928,0.4581,3195.3,3195.2,3.88003513]
[1763355973911,0.4581,3195.3,3195.2,3.47453113]
[1763355975396,0.9471,3195.3,3195.2,3.47453113]
[1763355976912,0.9506,3195.3,3195.2,0.33142101]
[1763355977127,0.9506,3195.3,3195.1,3.14311012]
[1763355977327,0.9655,3195.2,3195.1,3.14311012]
[1763355977501,0.9655,3195.2,3194.9,0.001]
[1763355977825,0.473,3195.0,3194.9,0.001]
[1763355978828,0.4925,3195.1,3194.9,4.27785092]
[1763355979031,0.4945,3195.3,3195.0,1.1337408]
[1763355979230,0.4945,3195.3,3195.1,3.14311012]
[1763355979607,0.473,3195.2,3195.1,3.14311012]
[1763355981519,0.002,3195.3,3195.1,3.14311012]
[1763355984058,0.4922,3195.3,3195.1,3.14311012]
[1763355986162,0.4577,3195.2,3195.1,3.14311012]
[1763355986737,0.4577,3195.2,3195.0,3.14311012]
[1763355987139,0.4922,3195.3,3195.0,4.27685092]
[1763355987140,0.9479,3195.1,3195.0,4.27685092]
[1763355987344,0.9479,3195.1,3195.0,1.1337408]
[1763355987545,0.9479,3195.1,3195.0,4.45235036]
[1763355988057,0.4577,3195.1,3195.0,4.45235036]
[1763355988965,0.4922,3195.3,3195.0,4.45235036]
[1763355989151,0.4922,3195.3,3195.2,3.14311012]
[1763355989947,0.9499,3195.3,3195.2,3.14311012]
[1763355991833,0.9499,3195.3,3195.0,4.45235036]
[1763355992034,0.4577,3195.1,3195.0,4.45235036]
[1763355992470,0.9479,3195.1,3195.0,4.45235036]
[1763355995357,0.002,3195.2,3195.0,7.76656048]
[1763355995555,0.002,3195.2,3195.1,0.1711]
[1763355995760,0.002,3195.2,3195.0,4.27685092]
[1763355996269,0.4922,3195.2,3195.0,4.27685092]
[1763355996880,0.002,3195.2,3195.1,3.1414016]
[1763355998450,0.4597,3195.2,3195.1,3.1414016]
[1763355998746,0.4597,3195.2,3195.1,3.56901584]
[1763355998943,0.002,3195.2,3195.1,5.45046064]
[1763356001055,0.002,3195.6,3195.2,1.8814448]
[1763356001269,0.002,3195.6,3195.5,3.3125016]
[1763356001455,0.002,3195.6,3195.5,3.69147642]
[1763356001655,0.002,3195.7,3195.6,1.5392448]
[1763356001860,0.002,3195.7,3195.6,1.8814448]
[1763356002382,0.005,3195.9,3195.8,4.6806464]
[1763356002578,0.005,3195.9,3195.8,4.8517464]
[1763356002782,0.005,3195.9,3195.8,5.27936064]
[1763356003381,1.1404,3195.9,3195.8,1.56135504]
[1763356003564,1.1404,3195.9,3195.2,5.91884827]
[1763356003762,0.4577,3195.6,3195.0,0.4902]
[1763356004067,0.4902,3195.5,3195.1,1.1337408]
[1763356004692,0.4902,3195.8,3195.4,1.1337408]
[1763356005097,0.4902,3195.8,3195.6,3.1414016]
[1763356005294,0.4577,3195.7,3195.6,3.1414016]
[1763356005698,0.9479,3195.7,3195.6,3.1414016]
[1763356005864,0.9479,3195.7,3195.4,1.1337408]
[1763356006193,0.4902,3195.6,3195.4,1.1337408]
[1763356006379,0.4577,3195.5,3195.4,1.1337408]
[1763356006775,0.9479,3195.5,3195.4,1.1337408]
[1763356007502,0.4577,3195.5,3195.4,1.56125504]
[1763356008896,0.4902,3195.7,3195.4,1.56125504]
[1763356009401,0.4902,3195.7,3195.6,3.1414016]
[1763356009901,0.4577,3195.7,3195.6,3.1414016]
[1763356010101,0.9479,3195.7,3195.6,3.1414016]
[1763356010297,0.1945,3195.9,3195.6,3.49829318]
[1763356010598,0.4577,3195.7,3195.6,3.1414016]
[1763356010818,0.007,3195.9,3195.8,0.576604]
[1763356011184,0.007,3195.9,3195.8,0.405504]
[1763356011381,0.4967,3195.9,3195.8,0.405504]
[1763356011605,0.4967,3195.9,3195.7,1.1337408]
[1763356011606,1.1893,3195.9,3195.7,1.1337408]
[1763356011791,0.4897,3195.8,3195.7,1.1337408]
[1763356011990,0.9838,3195.8,3195.7,1.1337408]
[1763356012219,0.4897,3195.8,3195.7,1.56125504]
[1763356012401,0.9838,3195.8,3195.7,1.56125504]
[1763356014111,0.007,3195.9,3195.7,1.56125504]
[1763356014312,0.9838,3195.8,3195.7,1.56125504]
[1763356016583,0.4897,3195.8,3195.7,1.56125504]
[1763356016917,0.9838,3195.8,3195.7,1.56125504]
[1763356017410,0.4897,3195.8,3195.7,1.56125504]